bitfinex/quotes_SOLUSD_20250619
["timestamp","ask_amount","ask_price","bid_price","bid_amount"]
[1750353149482,26.0,143.92,143.89,11.39407736]
[1750353149884,31.17350251,143.92,143.89,11.39407736]
[1750353150288,31.17350251,143.92,143.9,6.94927032]
[1750353150586,5.17350251,143.94,143.9,106.04334768]
[1750353150782,7.76265623,143.93,143.9,106.04334768]
[1750353150984,7.76265623,143.94,143.9,106.04334768]
[1750353151182,7.76265623,143.93,143.9,106.04334768]
[1750353151398,7.76265623,143.94,143.9,106.04334768]
[1750353151593,7.76265623,143.93,143.91,11.39407736]
[1750353151904,7.76265623,143.94,143.91,11.39407736]
[1750353152086,42.56757987,143.95,143.91,11.39407736]
[1750353153917,42.56757987,143.95,143.92,6.94830461]
[1750353154312,37.39407736,143.95,143.92,6.94830461]
[1750353154513,37.39407736,143.95,143.92,94.64830461]
[1750353156518,26.0,143.95,143.92,94.64830461]
[1750353156706,37.39407736,143.95,143.92,94.64830461]
[1750353157336,26.0,143.95,143.93,11.39407736]
[1750353157509,26.0,143.95,143.93,99.09407736]
[1750353158337,53.64024537,143.99,143.93,99.09407736]
[1750353158338,37.39407736,143.98,143.93,87.7]
[1750353158641,37.39407736,143.98,143.94,11.39407736]
[1750353159009,26.0,143.98,143.94,11.39407736]
[1750353159239,37.39407736,143.98,143.95,6.94685654]
[1750353159414,42.56355737,143.98,143.95,6.94685654]
[1750353159614,42.56355737,143.98,143.94,18.34118744]
[1750353159797,42.56355737,143.98,143.95,11.39407736]
[1750353159798,26.0,143.98,143.95,11.39407736]
[1750353160398,12.09665965,143.99,143.96,11.39407736]
[1750353160619,26.0,144.0,143.97,11.39407736]
[1750353161012,37.39407736,144.0,143.96,99.09407736]
[1750353161417,26.0,144.0,143.97,18.33996886]
[1750353162816,26.0,144.0,143.98,11.39407736]
[1750353163221,26.0,144.0,143.98,99.09407736]
[1750353163516,26.0,144.0,143.99,11.39407736]
[1750353163721,26.0,144.0,143.99,99.09407736]
[1750353163915,26.0,144.0,143.99,87.7]
[1750353164843,26.0,144.0,143.99,94.64492673]
[1750353165830,6.04,144.01,143.99,106.03900409]
[1750353166034,6.04,144.01,143.99,94.64492673]
[1750353166841,26.0,143.99,143.91,148.2568]
[1750353167048,11.39407736,143.94,143.91,241.3487855]
[1750353167229,11.39407736,143.92,143.88,6.9502363]
[1750353167430,11.39407736,143.9,143.88,6.9502363]
[1750353167618,11.39407736,143.9,143.87,8.50737834]
[1750353167818,11.39407736,143.9,143.87,6.95057834]
[1750353169258,11.39407736,143.91,143.87,6.95057834]
[1750353169843,11.39407736,143.91,143.87,18.3446557]
[1750353171341,11.39407736,143.9,143.86,11.39407736]
[1750353172249,11.39407736,143.9,143.87,6.95071939]
[1750353174228,11.39407736,143.89,143.86,6.95120255]
[1750353174552,11.39407736,143.88,143.86,94.65120255]
[1750353175884,11.39407736,143.88,143.86,87.7]
[1750353177436,32.94930569,143.9,143.86,87.7]
[1750353177633,11.39407736,143.88,143.86,87.7]
[1750353181930,11.39407736,143.88,143.86,94.65118329]
[1750353183670,37.39407736,143.9,143.86,106.04526065]
[1750353184042,37.39407736,143.9,143.87,11.39407736]
[1750353184756,26.0,143.9,143.87,11.39407736]
[1750353185069,37.39407736,143.9,143.87,6.95054142]
[1750353187059,37.39407736,143.9,143.87,94.65054142]
[1750353187561,11.39407736,143.88,143.87,87.7]
[1750353190250,26.0,143.9,143.87,87.7]
[1750353190453,11.39407736,143.89,143.87,87.7]
[1750353190649,37.39407736,143.89,143.87,87.7]
[1750353190964,11.39407736,143.88,143.87,87.7]
[1750353193051,11.39407736,143.88,143.85,94.65156048]
[1750353194070,11.39407736,143.86,143.85,87.7]
[1750353194444,11.39407736,143.87,143.85,87.7]
[1750353194646,11.39407736,143.88,143.85,94.65165778]
[1750353196050,11.39407736,143.88,143.85,87.7]
[1750353196251,11.39407736,143.87,143.85,87.7]
[1750353196692,32.94980149,143.89,143.85,87.7]
[1750353196887,11.39407736,143.87,143.85,87.7]
[1750353200675,11.39407736,143.86,143.85,87.7]
[1750353204809,26.0,143.84,143.83,87.7]
[1750353204970,37.39407736,143.84,143.81,87.7]
[1750353205284,11.39407736,143.82,143.81,87.7]
[1750353207071,18.34721322,143.82,143.81,87.7]
[1750353207269,18.34721322,143.82,143.77,153.65541162]
[1750353207270,26.0,143.81,143.77,87.7]
[1750353207586,11.39407736,143.79,143.77,87.7]
[1750353208185,11.39407736,143.78,143.77,87.7]
[1750353210091,32.95396141,143.81,143.77,87.7]
[1750353210277,11.39407736,143.78,143.77,87.7]
[1750353211184,11.39407736,143.78,143.77,94.655554]
[1750353211779,11.39407736,143.79,143.77,94.655554]
[1750353212595,18.03067736,143.87,143.8,87.7]
[1750353212784,2.57757241,143.88,143.84,11.39407736]
[1750353212989,20.72334225,143.89,143.79,28.34]
[1750353213198,37.39407736,143.86,143.79,28.34]
[1750353213368,26.0,143.86,143.79,28.34]
[1750353213573,37.39407736,143.86,143.82,11.39407736]
[1750353213768,26.0,143.86,143.83,11.39407736]
[1750353214594,26.0,143.86,143.84,6.95216907]
[1750353215295,11.39407736,143.88,143.84,18.34624643]
[1750353215595,37.39407736,143.88,143.84,18.34624643]
[1750353215998,11.39407736,143.88,143.84,18.34624643]
[1750353216403,37.39407736,143.88,143.84,18.34624643]
[1750353217701,37.39407736,143.88,143.85,11.39407736]
[1750353218999,37.39407736,143.88,143.84,18.34624643]
[1750353219597,37.39407736,143.88,143.84,6.95216907]
[1750353219900,37.39407736,143.88,143.84,18.34624643]
[1750353222603,37.39407736,143.88,143.84,106.04624643]
[1750353230411,11.39407736,143.87,143.84,87.7]
[1750353231205,32.95029565,143.88,143.84,87.7]
[1750353231516,11.39407736,143.86,143.84,87.7]
[1750353234720,11.39407736,143.85,143.84,87.7]
[1750353234908,6.95106712,143.87,143.84,87.7]
[1750353235214,11.39407736,143.85,143.84,87.7]
[1750353238624,44.34576314,143.85,143.84,87.7]
[1750353239621,55.7398405,143.85,143.84,87.7]
[1750353240300,55.7398405,143.85,143.8,6.95402201]
[1750353240517,11.39407736,143.81,143.8,87.7]
[1750353242422,18.34769671,143.81,143.8,87.7]
[1750353242631,18.34769671,143.81,143.77,87.7]
[1750353242926,11.39407736,143.78,143.77,87.7]
[1750353245623,6.95361935,143.81,143.77,87.7]
[1750353245813,11.39407736,143.78,143.77,87.7]
[1750353247021,11.39407736,143.78,143.77,94.655554]
[1750353247213,11.39407736,143.81,143.77,106.04963136]
[1750353247413,43.33975882,143.88,143.77,106.04963136]
[1750353247414,5.16102604,143.84,143.8,11.39407736]
[1750353247617,11.39407736,143.86,143.82,11.39407736]
[1750353247810,37.39407736,143.86,143.82,11.39407736]
[1750353248225,37.39407736,143.86,143.8,87.7]
[1750353248516,11.39407736,143.81,143.77,94.655554]
[1750353248719,11.39407736,143.8,143.77,94.655554]
[1750353249033,11.39407736,143.81,143.77,106.04963136]
[1750353249233,37.39407736,143.81,143.77,106.04963136]
[1750353250710,26.0,143.81,143.79,6.95458654]
[1750353255443,39.71407736,143.83,143.79,18.3486639]
[1750353255735,11.39407736,143.83,143.8,11.39407736]
[1750353256538,11.39407736,143.83,143.8,99.09407736]
[1750353256929,17.39507736,143.84,143.81,6.95361935]
[1750353257740,11.39407736,143.83,143.81,6.95361935]
[1750353261039,11.39407736,143.83,143.81,94.65361935]
[1750353264346,11.39407736,143.83,143.81,94.65361935]
[1750353266952,6.001,143.84,143.81,94.65361935]
[1750353267127,11.39407736,143.84,143.81,94.65361935]
[1750353267327,33.48928537,143.85,143.81,94.65361935]
[1750353267524,11.39407736,143.84,143.81,94.65361935]
[1750353269161,54.32,143.86,143.82,11.39407736]
[1750353269366,65.71407736,143.86,143.82,99.09407736]
[1750353269548,37.39407736,143.86,143.82,99.09407736]
[1750353269858,42.5656363,143.86,143.82,99.09407736]
[1750353270244,37.39407736,143.83,143.82,87.7]
[1750353270449,18.64964886,143.82,143.75,18.35059909]
[1750353270654,23.82037011,143.82,143.76,11.39407736]
[1750353270848,11.39407736,143.8,143.76,11.39407736]
[1750353271562,11.39407736,143.79,143.75,6.95652173]
[1750353271868,11.39407736,143.78,143.75,6.95652173]
[1750353272047,11.39407736,143.77,143.73,11.39407736]
[1750353272248,11.39407736,143.76,143.73,6.95729069]
[1750353273328,11.39407736,143.77,143.73,6.95729069]
[1750353274055,11.39407736,143.77,143.72,6.95797383]
[1750353274257,11.39407736,143.77,143.72,18.35205119]
[1750353275146,11.39407736,143.77,143.74,6.9570057]
[1750353275767,11.39407736,143.77,143.74,94.6570057]
[1750353283366,12.12570805,143.79,143.74,94.6570057]
[1750353283552,11.39407736,143.77,143.74,94.6570057]
[1750353284763,11.39407736,143.77,143.74,106.05108306]
[1750353285075,6.04,143.81,143.76,11.39407736]
[1750353285247,6.04,143.81,143.78,11.39407736]
[1750353285874,17.43407736,143.81,143.77,11.39407736]
[1750353286053,17.43407736,143.81,143.78,6.95507024]
[1750353287370,18.64964886,143.85,143.8,11.39407736]
[1750353287576,2.58480324,143.84,143.81,11.39407736]
[1750353287778,2.58493622,143.85,143.82,11.39407736]
[1750353287955,20.13901358,143.86,143.82,11.39407736]
[1750353288355,46.13901358,143.86,143.82,11.39407736]
[1750353288547,43.55407736,143.86,143.82,11.39407736]
[1750353289263,26.0,143.84,143.83,6.95265243]
[1750353290169,26.0,143.84,143.83,18.34672979]
[1750353291481,6.16,143.86,143.83,18.34672979]
[1750353293444,32.16,143.86,143.83,18.34672979]
[1750353293646,32.16,143.86,143.83,106.04672979]
[1750353296282,6.94934632,143.9,143.84,11.39407736]
[1750353296492,11.39407736,143.88,143.84,99.09407736]
[1750353296790,37.39407736,143.87,143.84,87.7]
[1750353296989,11.39407736,143.87,143.84,87.7]
[1750353297159,37.39407736,143.87,143.84,87.7]
[1750353297759,11.39407736,143.85,143.84,87.7]
[1750353298987,11.39407736,143.86,143.84,87.7]
[1750353300791,11.39407736,143.85,143.84,87.7]
[1750353303161,32.95084637,143.87,143.84,87.7]
[1750353303368,26.0,143.87,143.83,87.7]
[1750353303593,11.39407736,143.85,143.83,87.7]
[1750353303895,26.0,143.87,143.83,87.7]
[1750353304100,7.871,143.91,143.86,11.39407736]
[1750353304276,43.63737736,143.91,143.86,87.7]
[1750353304589,11.39407736,143.89,143.86,87.7]
[1750353304792,11.39407736,143.9,143.86,87.7]
[1750353304971,11.39407736,143.89,143.86,87.7]
[1750353305169,11.39407736,143.9,143.86,99.09407736]
[1750353305795,11.39407736,143.9,143.87,6.95071939]
[1750353308481,37.39407736,143.91,143.87,18.34479675]
[1750353308907,26.0,143.91,143.87,18.34479675]
[1750353309087,26.0,143.93,143.9,11.39407736]
[1750353309292,11.39407736,143.94,143.9,99.09407736]
[1750353309614,6.16,143.95,143.92,11.39407736]
[1750353309778,19.14094695,143.96,143.94,11.39407736]
[1750353310384,30.53502431,143.96,143.92,11.39407736]
[1750353310594,11.39407736,143.95,143.91,106.04286479]
[1750353310797,11.39407736,143.95,143.91,94.64878743]
[1750353310992,19.14094695,143.96,143.92,11.39407736]
[1750353310993,30.53502431,143.96,143.92,11.39407736]
[1750353312109,30.53502431,143.96,143.92,18.34231303]
[1750353313307,19.14094695,143.96,143.92,18.34231303]
[1750353314087,30.53502431,143.96,143.92,18.34231303]
[1750353314288,30.53502431,143.96,143.92,106.04231303]
[1750353314691,11.39407736,143.93,143.92,87.7]
[1750353314901,18.64964886,143.94,143.88,87.7]
[1750353315103,11.39407736,143.91,143.88,94.65023023]
[1750353315408,11.39407736,143.91,143.88,87.7]
[1750353315610,11.39407736,143.91,143.88,94.65010845]
[1750353316412,11.39407736,143.92,143.88,106.04418581]
[1750353317420,11.39407736,143.92,143.88,94.65010845]
[1750353317626,11.39407736,143.91,143.88,87.7]
[1750353317835,11.39407736,143.9,143.88,87.7]
[1750353318549,11.39407736,143.91,143.88,94.6501836]
[1750353319589,11.39407736,143.91,143.88,87.7]
[1750353319789,19.14094695,143.96,143.9,11.39407736]
[1750353319998,19.14094695,143.96,143.9,87.7]
[1750353319999,26.0874514,143.96,143.9,87.7]
[1750353320200,11.39407736,143.94,143.9,99.09407736]
[1750353320697,11.39407736,143.94,143.9,87.7]
[1750353320892,11.39407736,143.95,143.91,11.39407736]
[1750353321229,19.14094695,143.96,143.92,11.39407736]
[1750353321395,19.14094695,143.96,143.93,11.39407736]
[1750353321596,19.14094695,143.96,143.94,6.94733916]
[1750353323114,19.14094695,143.96,143.93,18.34167399]
[1750353323421,19.14094695,143.96,143.93,6.94759663]
[1750353323719,30.53502431,143.96,143.93,6.94759663]
[1750353324625,30.53502431,143.96,143.92,11.39407736]
[1750353324811,30.53502431,143.96,143.91,6.94878743]
[1750353325006,19.14094695,143.96,143.93,11.39407736]
[1750353326121,19.14094695,143.96,143.93,99.09407736]
[1750353326326,19.14094695,143.96,143.94,11.39407736]
[1750353326510,19.14094695,143.96,143.95,6.94685654]
[1750353326709,11.39407736,143.98,143.94,18.34123435]
[1750353326912,11.39407736,143.97,143.94,6.94715699]
[1750353328120,26.0,143.99,143.94,6.94715699]
[1750353328430,11.39407736,143.98,143.94,106.04123435]
[1750353329307,11.39407736,143.98,143.94,94.64715699]
[1750353329507,11.39407736,143.98,143.94,106.04123435]
[1750353330630,11.39407736,143.97,143.94,94.64715699]
[1750353334114,26.0,143.99,143.94,94.64715699]
[1750353334320,11.39407736,143.97,143.94,94.64715699]
[1750353334624,11.39407736,143.96,143.94,87.7]
[1750353335416,44.33903853,143.99,143.94,87.7]
[1750353335417,11.39407736,143.95,143.94,87.7]
[1750353336229,11.39407736,143.96,143.94,87.7]
[1750353337806,11.39407736,143.96,143.94,94.64732787]
[1750353340932,11.39407736,143.96,143.94,87.7]
[1750353348013,11.39407736,143.96,143.94,94.6472001]
[1750353348340,11.39407736,143.97,143.94,94.6472001]
[1750353350439,7.7630705,143.98,143.94,94.6472001]
[1750353350634,16.56210745,143.97,143.94,94.6472001]
[1750353350842,19.15714786,143.97,143.94,94.6472001]
[1750353351328,19.15714786,143.97,143.94,87.7]
[1750353352621,5.16803009,143.96,143.94,87.7]
[1750353352928,19.15714786,143.96,143.94,87.7]
[1750353353837,11.39407736,143.95,143.94,87.7]
[1750353354542,19.15714786,143.96,143.94,87.7]
[1750353354725,16.56210745,143.96,143.94,87.7]
[1750353354927,19.16013198,143.96,143.94,87.7]
[1750353356065,7.76605462,143.96,143.94,87.7]
[1750353356438,19.16013198,143.98,143.94,87.7]
[1750353356637,7.76605462,143.97,143.94,94.64715776]
[1750353356846,7.76621382,143.97,143.94,94.64715776]
[1750353357043,19.16029118,143.97,143.94,87.7]
[1750353357346,11.39407736,143.96,143.94,87.7]
[1750353357747,16.56210745,143.96,143.94,87.7]
[1750353357951,19.16029499,143.96,143.94,87.7]
[1750353358252,7.76621763,143.96,143.94,87.7]
[1750353358424,19.16029499,143.97,143.94,87.7]
[1750353358621,19.16029499,143.96,143.94,87.7]
[1750353360454,16.56210745,143.96,143.94,87.7]
[1750353360624,19.16027468,143.96,143.94,87.7]
[1750353360825,16.56210745,143.96,143.94,87.7]
[1750353361052,19.16028462,143.96,143.94,87.7]
[1750353361747,7.76620726,143.96,143.94,87.7]
[1750353361950,2.59817717,143.96,143.94,94.64729343]
[1750353362126,13.99239071,143.97,143.94,87.7]
[1750353362330,7.79646971,143.96,143.94,87.7]
[1750353363226,6.9455621,143.98,143.94,87.7]
[1750353363227,7.79646971,143.97,143.94,87.7]
[1750353363573,11.39407736,143.97,143.94,87.7]
[1750353363749,5.20241036,143.96,143.94,87.7]
[1750353364048,19.19704736,143.96,143.94,87.7]
[1750353364245,13.994637,143.96,143.94,87.7]
[1750353364446,2.60055964,143.95,143.94,87.7]
[1750353364632,7.8035074,143.95,143.94,87.7]
[1750353364834,11.39407736,143.97,143.94,94.64733916]
[1750353365028,7.81057397,143.96,143.94,87.7]
[1750353365237,7.81024024,143.95,143.94,87.7]
[1750353366245,7.81027062,143.95,143.94,87.7]
[1750353367330,19.20434798,143.95,143.94,87.7]
[1750353369227,19.20466697,143.95,143.94,87.7]
[1750353370557,19.20466697,143.95,143.93,6.94778303]
[1750353370760,7.81058961,143.94,143.93,6.94778303]
[1750353371838,7.81058961,143.94,143.93,18.34186039]
[1750353372055,19.20436375,143.97,143.93,18.34186039]
[1750353372236,7.81028639,143.96,143.93,18.34186039]
[1750353372435,2.60403825,143.95,143.93,18.34186039]
[1750353372654,7.8115869,143.96,143.93,18.34186039]
[1750353372837,11.39407736,143.97,143.93,18.34186039]
[1750353373035,7.81135331,143.96,143.93,18.34186039]
[1750353373238,11.39407736,143.97,143.93,18.34186039]
[1750353373449,7.81135301,143.96,143.93,18.34186039]
[1750353373648,11.39407736,143.97,143.93,18.34186039]
[1750353374053,5.20754367,143.96,143.93,18.34186039]
[1750353374238,11.39407736,143.97,143.93,18.34186039]
[1750353374440,7.81129321,143.96,143.93,18.34186039]
[1750353374640,11.39407736,143.97,143.93,18.34186039]
[1750353374864,7.81158708,143.96,143.93,18.34186039]
[1750353375062,11.39407736,143.97,143.93,18.34186039]
[1750353375238,7.81158768,143.96,143.93,18.34186039]
[1750353375561,7.81206485,143.95,143.93,6.94778303]
[1750353375744,11.39407736,143.96,143.93,6.94778303]
[1750353375945,7.81261991,143.95,143.93,6.94778303]
[1750353376248,11.39407736,143.96,143.93,6.94778303]
[1750353376565,7.81293567,143.95,143.93,94.64778303]
[1750353376749,11.39407736,143.96,143.93,94.64778303]
[1750353376949,7.81339337,143.95,143.93,94.64778303]
[1750353377149,11.39407736,143.96,143.93,94.64778303]
[1750353377366,7.81339214,143.95,143.93,94.64778303]
[1750353377566,11.39407736,143.96,143.93,94.64778303]
[1750353377767,7.81372089,143.95,143.93,94.64778303]
[1750353378069,11.39407736,143.96,143.93,94.64778303]
[1750353378244,7.81372058,143.95,143.93,94.64778303]
[1750353378436,11.39407736,143.96,143.93,94.64778303]
[1750353378641,7.81385161,143.95,143.93,94.64778303]
[1750353378842,11.39407736,143.96,143.93,94.64778303]
[1750353379043,7.81416617,143.95,143.93,94.64778303]
[1750353379243,11.39407736,143.97,143.93,94.64778303]
[1750353379553,19.20819699,143.96,143.93,94.64778303]
[1750353379757,7.81411963,143.95,143.93,94.64778303]
[1750353379942,11.39407736,143.96,143.93,94.64778303]
[1750353380138,7.8143858,143.95,143.93,94.64778303]
[1750353380344,11.39407736,143.96,143.93,94.64778303]
[1750353380542,7.81443083,143.95,143.93,94.64778303]
[1750353380743,2.60472976,143.95,143.93,94.64778303]
[1750353381167,11.39407736,143.96,143.93,94.64778303]
[1750353381463,5.20907853,143.95,143.93,87.7]
[1750353381649,5.20907853,143.94,143.93,87.7]
[1750353382446,16.60315589,143.94,143.93,87.7]
[1750353382644,29.59049505,143.94,143.89,87.7]
[1750353382858,11.39407736,143.9,143.89,87.7]
[1750353383057,16.60243674,143.9,143.87,94.65050646]
[1750353383267,11.39407736,143.9,143.87,94.65050646]
[1750353384363,5.20520303,143.91,143.88,11.39407736]
[1750353384549,5.20351066,143.93,143.9,11.39407736]
[1750353384746,5.20351066,143.92,143.9,11.39407736]
[1750353384964,5.20351066,143.93,143.9,99.09407736]
[1750353385465,17.43407736,143.94,143.91,11.39407736]
[1750353385466,6.04,143.94,143.91,11.39407736]
[1750353385772,17.43407736,143.94,143.91,87.7]
[1750353386139,17.43407736,143.94,143.91,94.64842488]
[1750353386343,11.39407736,143.93,143.91,94.64842488]
[1750353386546,5.20407891,143.92,143.91,87.7]
[1750353386748,11.39407736,143.93,143.91,87.7]
[1750353387369,5.20348488,143.92,143.91,87.7]
[1750353387573,16.59756224,143.92,143.91,87.7]
[1750353387873,11.39407736,143.92,143.91,87.7]
[1750353388050,16.59756224,143.92,143.91,87.7]
[1750353388249,11.39407736,143.92,143.91,87.7]
[1750353388550,16.59756224,143.92,143.91,87.7]
[1750353389475,5.20348488,143.92,143.91,87.7]
[1750353389661,11.39407736,143.92,143.91,87.7]
[1750353390174,13.99353701,143.93,143.91,87.7]
[1750353390553,19.19391083,143.93,143.91,87.7]
[1750353390773,16.59445118,143.93,143.91,87.7]
[1750353390956,19.19358215,143.93,143.91,87.7]
[1750353391159,11.39407736,143.92,143.91,87.7]
[1750353391356,19.19358215,143.93,143.91,87.7]
[1750353393083,19.19358215,143.93,143.91,106.04278071]
[1750353393084,5.20037382,143.93,143.91,106.04278071]
[1750353393277,8.63859428,143.94,143.91,106.04278071]
[1750353393475,8.63859428,143.94,143.92,11.39407736]
[1750353393476,6.04,143.94,143.92,11.39407736]
[1750353393874,7.79753361,143.95,143.92,11.39407736]
[1750353394169,5.19871625,143.95,143.92,11.39407736]
[1750353394373,7.7974721,143.95,143.92,11.39407736]
[1750353395171,7.7974721,143.95,143.93,6.94782185]
[1750353395861,13.99283321,143.96,143.93,6.94782185]
[1750353396273,5.19912086,143.95,143.93,6.94782185]
[1750353397086,5.19912086,143.95,143.93,94.64782185]
[1750353397470,7.79787671,143.95,143.93,94.64782185]
[1750353404364,7.79787671,143.95,143.93,87.7]
[1750353404562,11.39407736,143.95,143.93,87.7]
[1750353404863,19.19195407,143.95,143.93,87.7]
[1750353405089,11.39407736,143.95,143.93,87.7]
[1750353405284,19.19360624,143.95,143.93,87.7]
[1750353405483,11.39407736,143.95,143.93,87.7]
[1750353405665,19.19389062,143.95,143.93,87.7]
[1750353405981,11.39407736,143.95,143.93,87.7]
[1750353406173,19.19387553,143.95,143.93,87.7]
[1750353406366,11.39407736,143.95,143.93,87.7]
[1750353406569,19.19387553,143.95,143.93,87.7]
[1750353406793,11.39407736,143.95,143.93,87.7]
[1750353407164,19.19625826,143.95,143.93,87.7]
[1750353407366,13.9947863,143.94,143.93,87.7]
[1750353407577,19.19606655,143.94,143.93,87.7]
[1750353407865,16.59535761,143.94,143.93,87.7]
[1750353408086,19.19606655,143.94,143.93,87.7]
[1750353408874,19.19606655,143.94,143.91,87.7]
[1750353409084,16.59535761,143.93,143.91,87.7]
[1750353409386,11.39407736,143.93,143.91,94.64875673]
[1750353409566,16.59535761,143.93,143.91,94.64875673]
[1750353409763,11.39407736,143.93,143.91,94.64875673]
[1750353409970,16.59535761,143.93,143.91,94.64875673]
[1750353410168,11.39407736,143.93,143.91,94.64875673]
[1750353410367,16.59535761,143.93,143.91,94.64875673]
[1750353410589,11.39407736,143.93,143.91,94.64875673]
[1750353410789,16.59535761,143.93,143.91,94.64875673]
[1750353410995,11.39407736,143.93,143.91,94.64875673]
[1750353411293,19.19692538,143.93,143.91,94.64875673]
[1750353411485,16.59592799,143.94,143.91,94.64875673]
[1750353411796,19.19713951,143.94,143.91,94.64875673]
[1750353412803,11.39407736,143.94,143.91,94.64875673]
[1750353413513,16.59664886,143.94,143.91,94.64875673]
[1750353413674,19.19787194,143.94,143.91,94.64875673]
[1750353414781,16.59664886,143.94,143.91,94.64875673]
[1750353414983,19.19764517,143.94,143.91,94.64875673]
[1750353417210,7.80356781,143.94,143.93,11.39407736]
[1750353417513,7.80356781,143.96,143.93,11.39407736]
[1750353417680,2.60099631,143.96,143.93,99.09407736]
[1750353418086,2.60099631,143.96,143.94,6.94733916]
[1750353418283,2.60099631,143.96,143.93,94.64759565]
[1750353418602,11.39407736,143.96,143.93,94.64759565]
[1750353418902,7.80373469,143.95,143.93,94.64759565]
[1750353420020,11.39407736,143.95,143.93,94.64759565]
[1750353420393,7.80482108,143.94,143.93,94.64759565]
[1750353420589,11.39407736,143.95,143.93,94.64759565]
[1750353420998,5.20367417,143.94,143.93,94.64759565]
[1750353421498,16.59775153,143.94,143.93,87.7]
[1750353421927,19.19905493,143.94,143.93,87.7]
[1750353422627,16.59775153,143.94,143.93,87.7]
[1750353422928,19.19905493,143.94,143.93,87.7]
[1750353423091,26.14666487,143.94,143.93,87.7]
[1750353423294,7.80524835,143.94,143.93,87.7]
[1750353423510,16.59775153,143.94,143.93,87.7]
[1750353423719,16.59775153,143.94,143.92,6.94826393]
[1750353423918,19.19932571,143.94,143.92,6.94826393]
[1750353424127,5.20367417,143.95,143.91,6.94878743]
[1750353424302,7.80525448,143.94,143.91,6.94878743]
[1750353424691,2.60158031,143.94,143.91,6.94878743]
[1750353426229,13.99565767,143.94,143.91,6.94878743]
[1750353426430,11.39407736,143.94,143.91,6.94878743]
[1750353426605,13.99565767,143.94,143.91,6.94878743]
[1750353426905,11.39407736,143.94,143.91,6.94878743]
[1750353428511,11.39407736,143.95,143.91,18.34286479]
[1750353429507,11.39407736,143.95,143.91,106.04286479]
[1750353431006,11.39407736,143.95,143.91,94.64878743]
[1750353431207,19.2035655,143.94,143.91,94.64878743]
[1750353431418,11.39407736,143.94,143.91,94.64878743]
[1750353431820,5.20689464,143.93,143.91,94.64878743]
[1750353432933,16.600972,143.93,143.91,87.7]
[1750353433103,11.39407736,143.93,143.91,94.64874699]
[1750353433309,2.60310801,143.93,143.91,94.64874699]
[1750353434515,11.39407736,143.94,143.91,94.64874699]
[1750353434731,7.81233508,143.93,143.91,94.64874699]
[1750353434924,11.39407736,143.94,143.91,94.64874699]
[1750353435121,7.81233538,143.93,143.91,94.64874699]
[1750353435322,11.39407736,143.94,143.91,94.64874699]
[1750353435539,7.81264849,143.93,143.91,94.64874699]
[1750353435834,11.39407736,143.94,143.91,94.64874699]
[1750353436035,7.81316292,143.93,143.91,94.64874699]
[1750353436239,11.39407736,143.94,143.91,94.64874699]
[1750353436539,7.81357521,143.93,143.91,94.64874699]
[1750353436711,11.39407736,143.94,143.91,87.7]
[1750353436917,11.39407736,143.92,143.9,87.7]
[1750353437149,19.20795642,143.91,143.9,87.7]
[1750353437438,19.2083411,143.91,143.9,87.7]
[1750353438934,19.2083411,143.91,143.89,87.7]
[1750353439144,19.2083411,143.91,143.85,146.7]
[1750353439145,45.2083411,143.9,143.85,94.65143132]
[1750353439325,11.39407736,143.87,143.85,94.65143132]
[1750353439634,19.2083411,143.88,143.85,94.65143132]
[1750353439837,11.39407736,143.88,143.85,94.65143132]
[1750353440042,16.60348985,143.88,143.85,94.65143132]
[1750353440242,11.39407736,143.88,143.85,94.65143132]
[1750353440544,13.99532904,143.88,143.85,94.65143132]
[1750353440838,19.20474153,143.88,143.85,94.65143132]
[1750353441158,11.39407736,143.88,143.85,94.65143132]
[1750353441314,11.39407736,143.87,143.85,94.65143132]
[1750353442238,11.39407736,143.86,143.85,87.7]
[1750353442436,11.39407736,143.86,143.82,87.7]
[1750353442639,26.0,143.87,143.82,94.65284586]
[1750353442841,11.39407736,143.85,143.82,106.04692322]
[1750353444126,11.39407736,143.85,143.82,94.65284586]
[1750353446348,11.39407736,143.83,143.82,87.7]
[1750353449334,11.39407736,143.83,143.81,87.7]
[1750353449750,11.39407736,143.82,143.81,87.7]
[1750353450662,11.39407736,143.82,143.8,87.7]
[1750353450856,11.39407736,143.81,143.8,87.7]
[1750353454158,44.34769671,143.81,143.76,87.7]
[1750353454460,44.34769671,143.81,143.76,94.6559738]
[1750353454461,11.39407736,143.78,143.76,94.6559738]